bitfinex/quotes_SOLUSD_20250108
["timestamp","ask_amount","ask_price","bid_price","bid_amount"]
[1736363382202,3.4944,195.96,195.85,44.15506407]
[1736363382401,3.4944,195.96,195.88,40.71506407]
[1736363382605,0.3357,196.01,195.89,40.71506407]
[1736363383025,3.4944,196.02,195.91,40.71506407]
[1736363383502,3.4944,196.02,195.9,41.48047673]
[1736363383705,3.4944,196.02,195.89,40.71506407]
[1736363383907,3.4944,196.02,195.89,41.48045564]
[1736363384739,3.4944,196.02,195.88,40.71506407]
[1736363384951,3.4944,196.02,195.87,40.71506407]
[1736363385240,3.4944,196.02,195.88,0.76542943]
[1736363385409,3.4944,196.02,195.88,4.18542943]
[1736363385818,3.4944,196.02,195.88,44.9004935]
[1736363386225,3.4944,196.02,195.88,4.18542943]
[1736363386833,3.4944,196.02,195.89,40.71506407]
[1736363387149,3.4944,196.02,195.88,44.9004935]
[1736363387321,3.4944,196.02,195.89,25.0534668]
[1736363387709,3.4944,196.02,195.88,29.23889623]
[1736363388120,3.4944,196.02,195.9,25.0534668]
[1736363388325,3.4944,196.02,195.93,25.0534668]
[1736363388530,3.4944,196.02,195.92,25.0534668]
[1736363389534,3.4944,196.02,195.91,25.818791]
[1736363390719,3.4944,196.02,195.91,0.7653242]
[1736363391136,3.4944,196.02,195.91,25.818791]
[1736363392249,3.4944,196.02,195.92,25.0534668]
[1736363392650,3.4944,196.02,195.91,25.81876623]
[1736363392824,3.4944,196.02,195.9,25.0534668]
[1736363393022,3.4944,196.02,195.89,25.0534668]
[1736363393238,3.4944,196.02,195.9,3.34]
[1736363393421,3.4944,196.02,195.9,28.3934668]
[1736363394128,3.4944,196.02,195.91,25.0534668]
[1736363394747,3.4944,196.02,195.93,25.0534668]
[1736363397242,3.4944,196.02,195.92,25.0534668]
[1736363397547,3.4944,196.02,195.93,25.0534668]
[1736363397750,0.3357,196.07,195.9,3.34]
[1736363397751,3.8301,196.07,195.97,25.0534668]
[1736363398329,3.4944,196.12,196.01,25.0534668]
[1736363398530,3.4944,196.12,196.02,28.3534668]
[1736363398732,3.4944,196.12,196.04,25.0534668]
[1736363399041,20.3357,196.22,196.06,25.0534668]
[1736363399235,20.0,196.19,196.07,25.0534668]
[1736363399450,20.0,196.19,196.04,25.0534668]
[1736363399953,20.0,196.19,196.04,3.3]
[1736363400161,20.0,196.19,196.01,25.0534668]
[1736363400471,3.4944,196.14,196.0,28.3534668]
[1736363401255,3.4944,196.14,196.01,25.0534668]
[1736363401554,3.4944,196.14,196.04,25.0534668]
[1736363401951,3.4944,196.14,196.05,25.0534668]
[1736363402166,3.4944,196.21,196.06,25.0534668]
[1736363402353,3.4944,196.21,196.07,25.0534668]
[1736363402850,23.4944,196.21,196.04,25.0534668]
[1736363403242,23.4944,196.21,196.06,25.0534668]
[1736363403452,3.4944,196.21,196.08,25.0534668]
[1736363403930,3.4944,196.21,196.09,28.3534668]
[1736363404339,3.4944,196.21,196.09,3.3]
[1736363405551,3.4944,196.21,196.1,25.0534668]
[1736363405765,3.4944,196.27,196.14,25.0534668]
[1736363406070,3.4944,196.27,196.15,25.0534668]
[1736363406364,3.4944,196.27,196.18,25.0534668]
[1736363406738,7.1101,196.4,196.19,25.81774606]
[1736363406938,15.34,196.6,196.19,25.81774606]
[1736363406939,20.420558,196.39,196.25,25.0534668]
[1736363407172,30.0,196.44,196.24,25.0534668]
[1736363407466,3.8301,196.45,196.24,25.0534668]
[1736363407851,23.776884,196.44,196.24,25.0534668]
[1736363408159,20.0,196.43,196.24,25.0534668]
[1736363408363,3.8301,196.45,196.25,25.0534668]
[1736363408661,20.0,196.43,196.26,25.0534668]
[1736363408842,20.0,196.43,196.24,25.0534668]
[1736363409040,20.0,196.39,196.22,3.32]
[1736363409261,3.4944,196.38,196.22,3.32]
[1736363410268,3.4944,196.38,196.23,25.0534668]
[1736363410435,3.4944,196.38,196.22,3.32]
[1736363410436,3.4944,196.38,196.25,25.0534668]
[1736363411859,3.4944,196.38,196.22,3.32]
[1736363411860,3.4944,196.38,196.22,28.3734668]
[1736363412045,3.4944,196.38,196.2,1.654]
[1736363412365,3.4944,196.38,196.21,3.3]
[1736363412955,23.4944,196.38,196.21,3.3]
[1736363413942,20.0,196.34,196.21,3.3]
[1736363414145,20.0,196.34,196.16,0.7641673]
[1736363414146,0.3357,196.33,196.16,25.0534668]
[1736363414370,0.3357,196.33,196.17,3.3]
[1736363415157,44.112584,196.33,196.17,3.3]
[1736363415346,20.0,196.29,196.09,32.6255668]
[1736363415545,23.3,196.28,196.09,7.5721]
[1736363415858,23.3,196.28,196.09,32.6255668]
[1736363416061,20.0,196.27,196.09,32.6255668]
[1736363416263,20.0,196.27,196.08,3.3]
[1736363416458,20.0,196.27,196.09,25.0534668]
[1736363416770,3.3,196.26,196.09,25.0534668]
[1736363417192,20.0,196.28,196.1,49.59491467]
[1736363417651,20.0,196.28,196.08,28.3534668]
[1736363417853,23.776884,196.27,196.06,28.3534668]
[1736363418046,25.0,196.28,196.08,25.0534668]
[1736363418047,20.0,196.28,196.08,25.0534668]
[1736363418558,20.0,196.28,196.09,25.0534668]
[1736363418756,3.3,196.29,196.11,25.0534668]
[1736363418945,3.3,196.29,196.13,25.0534668]
[1736363419150,23.3,196.29,196.12,25.8179446]
[1736363419352,3.4944,196.32,196.12,25.8179446]
[1736363419550,3.28,196.29,196.12,25.8179446]
[1736363420166,3.28,196.29,196.12,0.7644778]
[1736363420381,3.28,196.29,196.09,25.0534668]
[1736363420557,20.0,196.28,196.09,25.0534668]
[1736363420758,20.0,196.28,196.1,25.0534668]
[1736363421054,23.28,196.29,196.1,25.0534668]
[1736363421474,23.28,196.29,196.12,25.0534668]
[1736363421977,3.4944,196.32,196.16,25.0534668]
[1736363422161,3.4944,196.32,196.19,25.0534668]
[1736363422483,3.4944,196.32,196.16,25.0534668]
[1736363422670,3.4944,196.32,196.17,25.0534668]
[1736363422874,3.4944,196.32,196.14,25.0534668]
[1736363423758,3.4944,196.32,196.12,25.0534668]
[1736363423977,3.4944,196.32,196.11,25.0534668]
[1736363424176,20.0,196.28,196.11,25.0534668]
[1736363424359,20.0,196.28,196.1,0.7643862]
[1736363424760,20.0,196.27,196.09,3.28]
[1736363425183,20.0,196.27,196.07,25.0534668]
[1736363425466,20.0,196.25,196.07,25.0534668]
[1736363425764,23.28,196.25,196.07,25.0534668]
[1736363426174,3.4944,196.24,196.06,25.0534668]
[1736363426482,0.3357,196.23,196.04,25.81805495]
[1736363426693,24.112584,196.23,196.03,32.6774668]
[1736363426859,20.0,196.2,196.05,25.0534668]
[1736363427361,44.112584,196.23,196.05,0.76473636]
[1736363427578,44.112584,196.23,196.03,25.0534668]
[1736363428556,20.0,196.19,196.0,25.0534668]
[1736363428760,20.0,196.19,195.99,25.0534668]
[1736363429056,20.0,196.19,196.0,25.0534668]
[1736363429274,20.0,196.19,195.99,25.0534668]
[1736363429564,20.0,196.19,196.0,25.0534668]
[1736363429876,3.4944,196.18,195.99,25.0534668]
[1736363430077,3.4944,196.18,196.0,25.81841235]
[1736363430252,3.4944,196.18,196.0,0.76494555]
[1736363430769,20.0,196.17,195.98,25.0534668]
[1736363430978,20.0,196.14,195.99,25.0534668]
[1736363431283,20.0,196.14,195.98,0.76502843]
[1736363431988,0.3357,196.13,195.98,0.76502843]
[1736363432486,20.3357,196.13,195.94,29.05852056]
[1736363432685,20.3357,196.13,195.94,25.81852056]
[1736363433076,0.3357,196.13,195.97,25.0534668]
[1736363433258,0.3357,196.13,196.02,25.0534668]
[1736363433462,0.3357,196.13,196.03,25.81836711]
[1736363433682,0.3357,196.13,196.03,0.76490031]
[1736363434572,0.3357,196.13,195.99,25.81834446]
[1736363434972,0.3357,196.13,195.98,28.2934668]
[1736363435490,0.3357,196.13,195.99,25.8184548]
[1736363436066,0.3357,196.13,195.99,0.764988]
[1736363436270,0.3357,196.13,196.0,25.0534668]
[1736363437076,0.3357,196.13,196.01,0.76491225]
[1736363437278,0.3357,196.13,195.99,25.0534668]
[1736363437486,20.3357,196.13,195.98,3.24]
[1736363438199,0.3357,196.13,195.97,28.2734668]
[1736363438889,0.3357,196.13,195.97,3.22]
[1736363439086,20.0,196.11,195.97,3.22]
[1736363439501,0.3357,196.13,195.97,23.22]
[1736363439678,0.3357,196.13,196.03,25.0534668]
[1736363439879,3.4944,196.18,196.04,25.81824416]
[1736363440771,3.4944,196.18,196.04,0.76477736]
[1736363441175,3.4944,196.26,196.13,25.0534668]
[1736363441396,3.4944,196.26,196.14,29.17792525]
[1736363441592,3.4944,196.26,196.15,3.36]
[1736363443199,3.4944,196.26,196.17,25.0534668]
[1736363443512,3.4944,196.26,196.15,28.4134668]
[1736363443881,3.4944,196.26,196.16,25.81784646]
[1736363444593,3.4944,196.26,196.16,0.76437966]
[1736363444788,3.4944,196.26,196.15,3.34]
[1736363445399,3.4944,196.26,196.16,0.76439008]
[1736363445591,3.4944,196.26,196.15,3.34]
[1736363445908,3.4944,196.26,196.12,0.76436105]
[1736363446703,3.4944,196.26,196.09,25.0534668]
[1736363447000,3.4944,196.26,196.1,0.76459941]
[1736363447400,23.4944,196.26,196.07,25.0534668]
[1736363447590,20.0,196.22,196.06,0.76460225]
[1736363447793,3.32,196.21,196.03,25.0534668]
[1736363447999,3.32,196.21,196.05,25.0534668]
[1736363448298,3.32,196.21,196.07,25.0534668]
[1736363448480,20.0,196.22,196.07,25.0534668]
[1736363448683,20.0,196.22,196.06,25.8182446]
[1736363448884,20.0,196.22,196.06,0.7647778]
[1736363449083,20.0,196.22,196.06,25.8182446]
[1736363449495,20.0,196.22,196.06,0.7647778]
[1736363450008,20.0,196.22,196.07,25.0534668]
[1736363450205,3.32,196.23,196.09,25.0534668]
[1736363450406,5.52306844,196.26,196.09,25.0534668]
[1736363450706,5.52306844,196.26,196.11,25.0534668]
[1736363450907,5.52306844,196.26,196.1,0.76458596]
[1736363451207,5.52306844,196.26,196.11,25.0534668]
[1736363451408,20.0,196.23,196.11,25.0534668]
[1736363451787,20.0,196.23,196.09,3.3]
[1736363452285,20.0,196.23,196.06,25.0534668]
[1736363453208,20.0,196.23,196.09,25.0534668]
[1736363453407,20.0,196.23,196.12,25.0534668]
[1736363453709,20.0,196.23,196.1,25.0534668]
[1736363454594,20.0,196.23,196.09,0.76456791]
[1736363454798,20.0,196.23,196.1,25.0534668]
[1736363455612,20.0,196.23,196.09,25.81803471]
[1736363455810,20.0,196.25,196.14,25.0534668]
[1736363455995,20.0,196.25,196.16,25.0534668]
[1736363456201,3.4944,196.26,196.15,25.0534668]
[1736363456520,20.0,196.25,196.15,25.0534668]
[1736363456808,20.0,196.25,196.11,0.76441089]
[1736363456809,20.0,196.25,196.13,25.0534668]
[1736363456988,20.0,196.25,196.15,25.0534668]
[1736363457188,3.4944,196.26,196.17,25.0534668]
[1736363457402,3.4944,196.26,196.19,25.0534668]
[1736363458216,20.0,196.31,196.17,0.76434757]
[1736363458217,3.4944,196.31,196.21,25.0534668]
[1736363458418,3.4944,196.31,196.23,25.0534668]
[1736363458797,3.4944,196.31,196.2,25.0534668]
[1736363459101,3.4944,196.31,196.19,25.81758333]
[1736363459642,3.4944,196.31,196.16,25.81771275]
[1736363459794,3.4944,196.31,196.15,25.0534668]
[1736363460114,3.4944,196.31,196.13,0.76424595]
[1736363460115,3.4944,196.31,196.14,25.0534668]
[1736363460313,20.0,196.28,196.12,25.0534668]
[1736363460518,20.0,196.28,196.11,25.0534668]
[1736363460812,20.0,196.27,196.1,25.0534668]
[1736363461012,20.0,196.27,196.09,25.0534668]
[1736363461218,28.90737228,196.3,196.06,0.76453055]
[1736363461219,3.4944,196.24,196.06,0.76453055]
[1736363461399,3.4944,196.24,196.02,25.0534668]
[1736363461600,20.0,196.2,196.02,25.0534668]
[1736363461805,20.0,196.2,196.08,25.0534668]
[1736363462230,3.4944,196.24,196.05,25.0534668]
[1736363462231,20.0,196.21,196.05,25.0534668]
[1736363462522,20.0,196.2,196.02,25.0534668]
[1736363462697,3.4944,196.19,195.99,26.5775668]
[1736363463031,20.0,196.15,195.99,4.8041]
[1736363463197,20.0,196.15,196.03,25.0534668]
[1736363463396,0.3357,196.17,196.01,25.0534668]
[1736363463611,20.0,196.14,195.99,3.28]
[1736363464130,20.0,196.14,196.0,25.8184274]
[1736363464333,0.3357,196.17,196.0,0.7649606]
[1736363464636,0.3357,196.17,195.97,3.28]
[1736363464637,20.0,196.14,195.97,3.28]
[1736363464796,3.4944,196.13,195.96,0.76493618]
[1736363464996,23.4944,196.13,195.96,0.76493618]
[1736363465195,20.0,196.11,195.93,25.0534668]
[1736363465431,20.0,196.11,195.92,25.81857515]
[1736363465597,20.0,196.11,195.92,0.76510835]
[1736363465806,0.3357,196.08,195.91,25.0534668]
[1736363466306,0.3357,196.08,195.9,35.12993242]
[1736363466925,3.4944,196.04,195.87,3.28]
[1736363467132,20.0,196.03,195.87,3.28]
[1736363467526,20.0,196.03,195.89,25.0534668]
[1736363467831,3.4944,196.04,195.95,25.0534668]
[1736363468125,3.4944,196.04,195.94,25.0534668]
[1736363468306,3.4944,196.04,195.91,23.776884]
[1736363468307,3.4944,196.04,195.91,25.0534668]
[1736363468625,3.4944,196.04,195.91,29.09878906]
[1736363468794,3.4944,196.04,195.94,25.0534668]
[1736363468997,3.4944,196.04,195.96,25.0534668]
[1736363469199,3.4944,196.04,195.97,25.8185764]
[1736363469399,3.4944,196.04,195.96,25.0534668]
[1736363469618,3.4944,196.04,195.95,25.0534668]
[1736363469822,3.4944,196.04,195.92,0.76512087]
[1736363470002,3.4944,196.04,195.94,25.0534668]
[1736363470198,3.4944,196.04,195.92,0.76512087]
[1736363470412,3.4944,196.04,195.91,3.28]
[1736363470823,3.4944,196.04,195.88,0.7651897]
[1736363471018,3.4944,196.04,195.87,29.09893082]
[1736363471215,3.4944,196.04,195.88,25.0534668]
[1736363471722,3.4944,196.04,195.89,25.0534668]
[1736363471910,3.4944,196.04,195.91,25.0534668]
[1736363472415,3.4944,196.04,195.9,25.0534668]
[1736363472619,3.4944,196.04,195.91,25.0534668]
[1736363473028,20.0,196.0,195.85,25.81886774]
[1736363473242,20.0,196.0,195.84,3.28]
[1736363473243,0.3357,195.99,195.84,3.28]
[1736363473544,0.3357,195.99,195.83,3.28]
[1736363473708,0.3357,195.99,195.84,25.81912386]
[1736363474318,0.3357,195.99,195.84,0.76565706]
[1736363474640,23.4944,195.98,195.83,3.28]
[1736363475029,23.4944,195.98,195.85,25.0534668]
[1736363475228,23.4944,195.98,195.82,25.0534668]
[1736363475410,23.4944,195.98,195.78,2.43031894]
[1736363475616,23.4944,195.98,195.8,25.0534668]
[1736363475846,23.4944,195.98,195.81,25.0534668]
[1736363476010,20.0,195.96,195.81,25.0534668]
[1736363476212,20.0,195.96,195.8,25.0534668]
[1736363476750,3.4944,195.93,195.77,25.0534668]
[1736363477035,3.4944,195.93,195.78,25.0534668]
[1736363477419,20.3357,195.92,195.76,25.0534668]
[1736363477622,20.3357,195.92,195.78,25.0534668]
[1736363477931,2.09231448,195.96,195.75,3.26]
[1736363478135,3.4944,195.98,195.82,25.0534668]
[1736363478644,25.58918974,195.98,195.83,25.0534668]
[1736363479143,25.58918974,195.98,195.75,8.26]
[1736363479144,23.776884,195.97,195.8,25.0534668]
[1736363479315,53.776884,195.97,195.8,25.0534668]
[1736363479523,20.0,195.92,195.77,25.0534668]
[1736363479715,20.0,195.9,195.75,25.0534668]
[1736363479915,20.0,195.9,195.73,25.0534668]
[1736363480738,20.0,195.88,195.72,28.3134668]
[1736363481249,20.0,195.88,195.75,25.0534668]
[1736363481452,20.0,195.88,195.76,25.0534668]
[1736363481831,20.0,195.88,195.74,25.0534668]
[1736363482256,3.4944,195.85,195.71,25.0534668]
[1736363482420,3.4944,195.85,195.7,25.0534668]
[1736363482736,3.4944,195.85,195.71,25.0534668]
[1736363483360,0.3357,195.83,195.66,0.76606297]
[1736363483533,20.0,195.82,195.68,25.0534668]
[1736363483732,20.0,195.82,195.69,25.0534668]
[1736363484051,0.3357,195.83,195.76,25.0534668]
[1736363484839,0.3357,195.83,195.75,28.3134668]
[1736363485541,0.3357,195.83,195.75,3.26]
[1736363486039,0.3357,195.83,195.7,28.3134668]
[1736363486242,0.3357,195.83,195.69,25.0534668]
[1736363486450,20.0,195.82,195.69,3.26]
[1736363486822,20.0,195.82,195.68,25.0534668]
[1736363487163,20.0,195.82,195.64,0.76633992]
[1736363487164,20.0,195.82,195.66,28.2934668]
[1736363487326,20.0,195.82,195.66,25.0534668]
[1736363487646,20.0,195.82,195.66,3.26]
[1736363487835,20.0,195.82,195.66,28.3134668]
[1736363488243,3.4944,195.77,195.64,3.26]
[1736363488742,3.4944,195.77,195.64,28.3134668]
[1736363489239,3.4944,195.77,195.64,3.26]
[1736363489548,20.0,195.76,195.62,25.0534668]
[1736363489793,0.3357,195.75,195.6,25.0534668]
[1736363490058,20.0,195.7,195.53,1.5551]
[1736363490238,3.4944,195.69,195.53,25.0534668]
[1736363490637,0.3357,195.68,195.52,25.0534668]
[1736363490864,20.3357,195.68,195.51,25.0534668]
[1736363491044,20.3357,195.68,195.48,15.11047989]
[1736363491045,20.0,195.66,195.48,1.5551]
[1736363491357,3.26,195.65,195.48,25.0534668]
[1736363491617,20.0,195.66,195.46,12.7903]
[1736363491731,3.26,195.67,195.54,40.87018145]
[1736363491930,20.0,195.66,195.54,40.87018145]
[1736363492129,20.0,195.66,195.52,40.87018145]
[1736363492335,20.0,195.64,195.49,40.87018145]
[1736363492530,20.0,195.64,195.48,40.87018145]
[1736363492732,3.4944,195.63,195.48,40.87018145]
[1736363492931,3.4944,195.63,195.44,3.26]
[1736363493137,20.0,195.62,195.46,40.87018145]
[1736363493359,20.0,195.62,195.47,40.87018145]
[1736363494172,20.0,195.62,195.48,40.87018145]
[1736363494461,20.0,195.62,195.47,40.87018145]
[1736363494667,20.0,195.62,195.48,40.87018145]
[1736363494859,3.4944,195.63,195.45,0.7671253]
[1736363494860,3.4944,195.63,195.54,40.87018145]
[1736363495163,3.4944,195.63,195.5,40.87018145]
[1736363495459,3.4944,195.63,195.49,40.87018145]
[1736363495667,3.4944,195.63,195.5,40.87018145]
[1736363495853,3.4944,195.63,195.49,40.87018145]
[1736363496255,3.4944,195.63,195.48,40.87018145]
[1736363496564,3.4944,195.63,195.47,40.87018145]
[1736363496767,3.4944,195.63,195.46,40.87018145]
[1736363496768,20.0,195.61,195.46,40.87018145]
[1736363497289,20.0,195.61,195.45,40.87018145]
[1736363497456,0.3357,195.6,195.45,40.87018145]
[1736363497973,20.0,195.59,195.44,40.87018145]
[1736363498344,20.0,195.59,195.45,40.87018145]
[1736363498740,23.776884,195.58,195.43,40.87018145]
[1736363498965,23.776884,195.58,195.44,40.87018145]
[1736363499275,20.0,195.59,195.45,40.87018145]
[1736363499940,20.3357,195.6,195.46,40.87018145]
[1736363500363,20.3357,195.6,195.45,40.87018145]
[1736363500567,20.0,195.58,195.43,40.87018145]
[1736363500743,20.0,195.58,195.42,40.87018145]
[1736363501170,3.24,195.59,195.41,40.87018145]
[1736363501171,43.776884,195.56,195.41,40.87018145]
[1736363501359,43.776884,195.56,195.4,44.11018145]
[1736363501947,43.776884,195.56,195.38,40.87018145]
[1736363502152,43.776884,195.56,195.37,40.87018145]
[1736363502469,20.0,195.49,195.32,48.54698145]
[1736363502669,3.4944,195.48,195.32,40.87018145]
[1736363502844,3.4944,195.48,195.31,40.87018145]
[1736363503045,20.3357,195.44,195.3,60.87018145]
[1736363503272,20.3357,195.44,195.29,40.87018145]
[1736363503467,20.3357,195.44,195.3,40.87018145]
[1736363503652,20.3357,195.44,195.29,40.87018145]
[1736363504285,20.0,195.4,195.26,40.87018145]
[1736363504479,43.776884,195.43,195.27,40.87018145]
[1736363504684,43.776884,195.43,195.29,40.87018145]
[1736363504991,0.3357,195.44,195.3,40.87018145]
[1736363505287,0.3357,195.44,195.34,40.87018145]
[1736363506150,3.4944,195.48,195.38,40.87018145]
[1736363506353,3.4944,195.48,195.41,40.87018145]
[1736363506668,3.4944,195.52,195.42,40.87018145]
[1736363507251,3.4944,195.52,195.43,40.87018145]
[1736363508281,3.4944,195.52,195.41,40.87018145]
[1736363508574,3.4944,195.52,195.38,40.87018145]
[1736363508778,3.4944,195.52,195.39,40.87018145]
[1736363509157,3.4944,195.52,195.38,40.87018145]
[1736363509357,3.4944,195.52,195.4,40.87018145]
[1736363509957,3.4944,195.52,195.38,64.64706545]
[1736363510880,3.4944,195.52,195.42,40.87018145]
[1736363511081,3.4944,195.52,195.41,40.87018145]
[1736363511279,3.4944,195.52,195.42,40.87018145]
[1736363511983,3.4944,195.52,195.41,40.87018145]
[1736363512163,3.4944,195.52,195.38,40.87018145]
[1736363512478,3.4944,195.52,195.37,44.05018145]
[1736363512674,3.4944,195.52,195.37,40.87018145]
[1736363512975,3.4944,195.52,195.39,40.87018145]
[1736363513183,3.4944,195.52,195.37,40.87018145]
[1736363513385,3.4944,195.52,195.37,25.18618102]
[1736363513852,20.0,195.48,195.33,25.18618102]
[1736363514050,20.0,195.48,195.35,25.18618102]
[1736363514285,20.0,195.48,195.38,25.18618102]
[1736363514592,3.4944,195.52,195.39,25.18618102]
[1736363514809,20.0,195.5,195.38,25.18618102]
[1736363514996,20.0,195.5,195.39,25.9535956]
[1736363515275,20.0,195.5,195.38,25.18618102]
[1736363515481,20.0,195.51,195.38,25.18618102]
[1736363515779,20.0,195.51,195.39,25.18618102]
[1736363515982,20.0,195.51,195.4,25.18618102]
[1736363516486,20.0,195.51,195.39,25.18618102]
[1736363516696,20.0,195.51,195.4,25.18618102]
[1736363516877,20.0,195.51,195.39,25.18618102]
[1736363517270,20.0,195.51,195.4,25.18618102]
[1736363517479,20.0,195.51,195.39,25.18618102]
[1736363518192,20.0,195.51,195.36,25.18618102]
[1736363518506,43.776884,195.51,195.35,45.95367853]
[1736363518802,43.776884,195.51,195.36,25.18618102]
[1736363519407,20.0,195.51,195.37,25.18618102]
[1736363519702,20.0,195.51,195.39,25.18618102]
[1736363520368,20.0,195.51,195.36,25.18618102]
[1736363520577,43.776884,195.51,195.35,45.18618102]
[1736363521095,23.776884,195.5,195.33,0.76756133]
[1736363521267,23.776884,195.5,195.31,25.18618102]
[1736363521474,20.0,195.41,195.27,25.18618102]
[1736363521792,20.0,195.41,195.28,25.18618102]
[1736363521986,43.776884,195.44,195.28,25.18618102]
[1736363522184,20.0,195.4,195.26,28.36618102]
[1736363522368,3.4944,195.39,195.25,25.18618102]
[1736363522569,0.3357,195.38,195.23,36.34618102]
[1736363522771,20.0,195.35,195.18,7.915]
[1736363522992,20.0,195.35,195.17,25.18618102]
[1736363523197,20.0,195.33,195.16,25.18618102]
[1736363523376,20.0,195.33,195.15,25.18618102]
[1736363523574,20.0,195.29,195.15,25.18618102]
[1736363523774,0.3357,195.28,195.14,25.18618102]
[1736363523986,0.3357,195.28,195.13,36.28118102]
[1736363524190,0.3357,195.28,195.13,28.36618102]
[1736363524366,20.0,195.25,195.13,3.18]
[1736363524573,0.3357,195.28,195.13,3.18]
[1736363524788,20.0,195.27,195.13,28.36618102]
[1736363525101,20.0,195.27,195.13,3.18]
[1736363525492,3.4944,195.26,195.11,25.18618102]
[1736363525797,3.4944,195.26,195.1,25.18618102]
[1736363525976,23.776884,195.25,195.09,25.18618102]
[1736363526179,20.0,195.23,195.13,25.18618102]
[1736363526382,3.4944,195.26,195.15,25.18618102]
[1736363526600,3.4944,195.26,195.2,25.18618102]
[1736363526773,0.3357,195.28,195.16,3.9483083]
[1736363526774,3.4944,195.31,195.22,25.18618102]
[1736363526974,3.4944,195.31,195.21,25.18618102]
[1736363527191,3.4944,195.31,195.2,25.18618102]
[1736363527497,3.4944,195.31,195.22,25.18618102]
[1736363527700,3.4944,195.31,195.19,3.18]
[1736363528187,3.4944,195.31,195.17,25.18618102]
[1736363528385,3.4944,195.31,195.18,25.18618102]
[1736363528691,3.4944,195.31,195.21,25.18618102]
[1736363528890,3.4944,195.31,195.2,25.18618102]
[1736363529286,3.4944,195.31,195.22,25.18618102]
[1736363529595,3.4944,195.31,195.21,25.18618102]
[1736363529808,3.4944,195.31,195.18,25.18618102]
[1736363530190,3.4944,195.31,195.2,25.18618102]
[1736363530505,3.4944,195.31,195.22,25.18618102]
[1736363531080,3.4944,195.31,195.19,25.18618102]
[1736363531281,3.4944,195.31,195.17,0.76822014]
[1736363531480,3.4944,195.31,195.17,25.18618102]
[1736363531695,3.4944,195.31,195.19,25.18618102]
[1736363532320,3.4944,195.31,195.2,25.18618102]
[1736363532500,3.4944,195.31,195.18,25.18618102]
[1736363532714,3.4944,195.31,195.14,25.18618102]
[1736363532886,20.0,195.27,195.13,25.95425524]
[1736363533081,20.0,195.27,195.12,25.18618102]
[1736363533483,20.0,195.27,195.13,25.18618102]
[1736363533691,20.0,195.27,195.14,25.95455838]
[1736363533892,20.0,195.27,195.14,25.18618102]
[1736363534410,20.0,195.27,195.16,25.18618102]
[1736363534831,20.0,195.27,195.15,25.18618102]
[1736363535004,20.0,195.27,195.14,0.7683133]
[1736363535196,20.0,195.27,195.15,25.18618102]
[1736363535384,20.0,195.27,195.14,25.95449432]
[1736363535587,20.0,195.27,195.14,25.95457421]
[1736363536781,20.0,195.27,195.13,25.18618102]
[1736363537001,20.0,195.27,195.14,25.95457824]
[1736363537180,20.0,195.28,195.15,48.96306502]
[1736363537381,3.4944,195.31,195.2,25.18618102]
[1736363537594,3.4944,195.31,195.22,25.18618102]
[1736363537795,3.4944,195.31,195.24,25.18618102]
[1736363538021,3.4944,195.36,195.27,25.18618102]
[1736363538220,3.4944,195.36,195.28,25.18618102]
[1736363538386,3.4944,195.36,195.29,25.18618102]
[1736363538596,0.3357,195.39,195.29,25.18618102]
[1736363539014,0.3357,195.39,195.28,25.18618102]
[1736363539325,20.3357,195.39,195.28,25.18618102]
[1736363539702,0.3357,195.39,195.27,25.18618102]
[1736363540091,0.3357,195.39,195.29,25.18618102]
[1736363541122,0.3357,195.39,195.28,23.776884]
[1736363541617,0.3357,195.39,195.26,25.18618102]
[1736363541831,0.3357,195.39,195.27,48.96306502]
[1736363542150,0.3357,195.39,195.24,25.18618102]
[1736363542418,20.0,195.33,195.21,25.18618102]
[1736363542621,43.776884,195.36,195.2,6.0878]